bitfinex/quotes_BTCUSD_20240101
["timestamp","ask_amount","ask_price","bid_price","bid_amount"]
[1704150411713,0.41306,43735.0,43721.0,0.001]
[1704150411714,0.04722,43735.0,43733.0,0.1]
[1704150411926,0.04524,43737.0,43733.0,0.1]
[1704150412071,0.26105487,43738.0,43735.0,0.1]
[1704150412459,0.23321711,43738.0,43735.0,0.1]
[1704150414742,0.01,43737.0,43735.0,0.1]
[1704150414986,0.24321711,43737.0,43733.0,0.011]
[1704150415161,0.24321711,43737.0,43733.0,0.001]
[1704150415162,0.365848,43734.0,43733.0,0.001]
[1704150415575,0.365848,43734.0,43733.0,0.01]
[1704150416212,0.365848,43734.0,43731.0,0.1]
[1704150416418,0.417988,43734.0,43731.0,0.1]
[1704150416618,0.417988,43734.0,43729.0,0.1]
[1704150416862,0.04668,43733.0,43731.0,0.1]
[1704150417054,0.365848,43734.0,43732.0,0.01]
[1704150417461,0.04572,43733.0,43731.0,0.1]
[1704150418435,0.365848,43734.0,43731.0,0.1]
[1704150418631,0.002,43733.0,43731.0,0.1]
[1704150418831,0.006,43733.0,43732.0,0.01]
[1704150419065,0.006,43733.0,43731.0,0.08000001]
[1704150419259,0.002,43733.0,43731.0,0.08000001]
[1704150419472,0.002,43733.0,43732.0,0.18000001]
[1704150419886,0.002,43733.0,43732.0,0.28000001]
[1704150420520,0.006,43734.0,43733.0,0.28000001]
[1704150421078,0.3,43740.0,43739.0,0.08000001]
[1704150422108,0.309,43740.0,43739.0,0.08100001]
[1704150422675,0.681797,43740.0,43739.0,0.2863]
[1704150422785,0.740537,43740.0,43739.0,0.2863]
[1704150423015,0.670537,43740.0,43739.0,0.2863]
[1704150423275,0.611797,43740.0,43739.0,0.2863]
[1704150423440,0.666817,43740.0,43739.0,0.29150855]
[1704150423640,0.611797,43740.0,43739.0,0.29150855]
[1704150424471,0.90135411,43740.0,43739.0,0.29150855]
[1704150424651,0.92435411,43740.0,43739.0,0.29150855]
[1704150425444,0.86801411,43740.0,43739.0,0.29150855]
[1704150426919,0.92999411,43740.0,43739.0,0.001]
[1704150427356,1.27999411,43740.0,43739.0,0.001]
[1704150427565,1.27999411,43740.0,43739.0,0.00620678]
[1704150427790,1.27999411,43740.0,43739.0,0.001]
[1704150428634,1.27999411,43740.0,43735.0,0.2822]
[1704150428846,0.30859711,43739.0,43735.0,0.2822]
[1704150429067,0.30859711,43739.0,43736.0,0.00521955]
[1704150429271,0.30859711,43739.0,43735.0,0.2822]
[1704150429469,0.365831,43736.0,43735.0,0.2822]
[1704150429679,0.59904811,43736.0,43735.0,0.2822]
[1704150430154,0.77778877,43736.0,43728.0,0.05]
[1704150430383,0.365889,43729.0,43728.0,0.05]
[1704150430557,0.59910611,43729.0,43728.0,0.05]
[1704150430764,0.68083704,43729.0,43728.0,0.05]
[1704150430964,0.73206859,43729.0,43728.0,0.05524853]
[1704150431169,0.65028611,43729.0,43728.0,0.00524853]
[1704150431377,0.65028611,43729.0,43728.0,0.002]
[1704150431577,1.03861691,43729.0,43728.0,0.001]
[1704150431730,0.92964234,43729.0,43728.0,0.001]
[1704150431932,1.0743343,43729.0,43728.0,0.002]
[1704150432136,0.74910837,43729.0,43728.0,0.002]
[1704150432713,0.93762612,43729.0,43728.0,0.002]
[1704150432916,1.07410327,43729.0,43728.0,0.002]
[1704150433329,0.57173712,43729.0,43728.0,0.002]
[1704150433539,0.93762612,43729.0,43728.0,0.002]
[1704150433955,0.96012612,43729.0,43728.0,0.002]
[1704150434158,0.98312612,43729.0,43728.0,0.002]
[1704150434365,1.33312612,43729.0,43728.0,0.002]
[1704150434782,1.49720032,43729.0,43728.0,0.002]
[1704150434983,1.3457344,43729.0,43728.0,0.002]
[1704150435193,1.73162339,43729.0,43728.0,0.002]
[1704150435410,2.23509933,43729.0,43728.0,0.002]
[1704150435645,2.35113371,43729.0,43728.0,0.002]
[1704150435847,2.17746339,43729.0,43728.0,0.002]
[1704150436465,0.01999999,43726.0,43721.0,0.2876]
[1704150436670,0.365948,43722.0,43721.0,0.2876]
[1704150436881,0.50355712,43722.0,43721.0,0.2876]
[1704150437080,0.55623712,43722.0,43721.0,0.2876]
[1704150437910,0.92218512,43722.0,43721.0,0.2876]
[1704150438143,0.92218512,43722.0,43721.0,0.2896]
[1704150438350,0.92218512,43722.0,43721.0,0.002]
[1704150438557,1.10923276,43722.0,43721.0,0.002]
[1704150438728,1.48779876,43722.0,43721.0,0.002]
[1704150438942,1.35441895,43722.0,43721.0,0.002]
[1704150439148,0.92989711,43722.0,43721.0,0.002]
[1704150439402,1.45988264,43722.0,43721.0,0.002]
[1704150439733,1.6744101,43722.0,43721.0,0.002]
[1704150439927,1.6744101,43722.0,43721.0,0.003]
[1704150440128,1.83842611,43722.0,43721.0,0.003]
[1704150440336,1.83843223,43722.0,43721.0,0.001]
[1704150440638,0.365991,43717.0,43714.0,0.2794]
[1704150440864,0.10932635,43715.0,43714.0,0.2794]
[1704150441149,0.61288347,43715.0,43714.0,0.2794]
[1704150441814,0.34254346,43715.0,43714.0,0.2794]
[1704150442039,0.34254346,43715.0,43714.0,0.2804]
[1704150442368,0.23321711,43715.0,43714.0,0.2804]
[1704150442567,0.31518825,43715.0,43714.0,0.2804]
[1704150442790,0.31518825,43715.0,43714.0,0.001]
[1704150442791,0.2532171,43715.0,43714.0,0.001]
[1704150443160,0.2532171,43715.0,43710.0,0.02915]
[1704150443161,0.366034,43712.0,43710.0,0.02915]
[1704150443370,0.31519138,43711.0,43710.0,0.02915]
[1704150444199,0.36069414,43711.0,43710.0,0.02915]
[1704150444616,0.28739299,43711.0,43710.0,0.03415]
[1704150444944,0.23275987,43711.0,43710.0,0.03415]
[1704150445368,0.28739299,43711.0,43710.0,0.03415]
[1704150445776,0.28739299,43711.0,43710.0,0.03015]
[1704150446408,0.28739299,43711.0,43710.0,0.02915]
[1704150446611,0.23275987,43711.0,43710.0,0.02915]
[1704150446844,0.23275987,43711.0,43710.0,0.03215]
[1704150447074,0.28035987,43711.0,43710.0,0.03215]
[1704150447285,0.28035987,43711.0,43710.0,0.02915]
[1704150447286,1.38873986,43711.0,43710.0,0.02915]
[1704150447399,1.55935419,43711.0,43710.0,0.02915]
[1704150447608,1.47363419,43711.0,43710.0,0.02915]
[1704150448449,1.82363419,43711.0,43710.0,0.02915]
[1704150448944,1.45759419,43711.0,43710.0,0.02915]
[1704150449169,0.366057,43709.0,43708.0,0.22280001]
[1704150449385,0.62227411,43709.0,43708.0,0.22280001]
[1704150449619,0.70171411,43709.0,43708.0,0.22280001]
[1704150449836,0.75626754,43709.0,43708.0,0.22280001]
[1704150450048,0.70171411,43709.0,43708.0,0.22280001]
[1704150450463,0.75626373,43709.0,43708.0,0.22380001]
[1704150451025,0.75626373,43709.0,43708.0,0.22982178]
[1704150451253,0.70171411,43709.0,43708.0,0.22882178]
[1704150451409,0.70671411,43709.0,43708.0,0.22882178]
[1704150451620,0.70671411,43709.0,43708.0,0.22982178]
[1704150451621,0.71271411,43709.0,43708.0,0.22982178]
[1704150451825,0.70771411,43709.0,43708.0,0.22982178]
[1704150452238,0.71271411,43709.0,43708.0,0.22982178]
[1704150452469,0.93334403,43709.0,43708.0,0.22982178]
[1704150452892,0.91789364,43709.0,43708.0,0.22380001]
[1704150453310,1.20734402,43709.0,43708.0,0.22280001]
[1704150454265,1.21334402,43709.0,43708.0,0.22380001]
[1704150454610,1.21334402,43709.0,43704.0,0.02915]
[1704150454611,1.29523835,43709.0,43704.0,0.02915]
[1704150454811,0.36609,43705.0,43704.0,0.02915]
[1704150455013,0.59930711,43705.0,43704.0,0.02915]
[1704150455212,0.65888711,43705.0,43704.0,0.02915]
[1704150455585,1.24325208,43705.0,43704.0,0.02915]
[1704150455865,1.14695208,43705.0,43704.0,0.02915]
[1704150456083,1.23539208,43705.0,43704.0,0.02915]
[1704150456302,0.01999999,43703.0,43699.0,0.02915]
[1704150456520,0.38613199,43700.0,43699.0,0.02915]
[1704150456705,0.6423491,43700.0,43699.0,0.02915]
[1704150457186,0.6968891,43700.0,43699.0,0.02915]
[1704150457643,0.7078891,43700.0,43699.0,0.03015]
[1704150457853,0.7178891,43700.0,43699.0,0.03115]
[1704150460999,0.7178891,43700.0,43697.0,0.15046799]
[1704150461152,0.62236311,43699.0,43697.0,0.15046799]
[1704150461360,0.68452311,43699.0,43697.0,0.15046799]
[1704150461560,0.05502,43698.0,43697.0,0.15046799]
[1704150461775,0.28823711,43698.0,43697.0,0.15664809]
[1704150462015,0.28823711,43698.0,43697.0,0.15046799]
[1704150462254,0.28823711,43698.0,43691.0,0.15]
[1704150462255,0.01999999,43696.0,43691.0,0.05]
[1704150462487,0.366197,43693.0,43691.0,0.05]
[1704150462706,0.23321711,43692.0,43691.0,0.05]
[1704150462929,0.28835711,43692.0,43691.0,0.05]
[1704150463192,0.28835711,43692.0,43689.0,0.24085]
[1704150463409,0.23321711,43692.0,43689.0,0.24085]
[1704150463623,0.23321711,43692.0,43690.0,0.00619295]
[1704150464040,0.366197,43693.0,43690.0,0.08619296]
[1704150464268,0.59941411,43693.0,43690.0,0.08619296]
[1704150464499,0.23321711,43693.0,43690.0,0.08619296]
[1704150464707,0.23321711,43693.0,43690.0,0.17947981]
[1704150464915,0.23321711,43693.0,43690.0,0.08619296]
[1704150465327,0.23321711,43693.0,43690.0,0.17947981]
[1704150465957,0.23421711,43693.0,43690.0,0.17947981]
[1704150466187,0.23421711,43693.0,43690.0,0.08619296]
[1704150466632,0.23321711,43693.0,43690.0,0.08619296]
[1704150466843,0.23721711,43693.0,43690.0,0.08619296]
[1704150467276,0.23321711,43693.0,43690.0,0.08619296]
[1704150467473,0.04476,43696.0,43692.0,0.08000001]
[1704150467685,0.04476,43696.0,43694.0,0.08000001]
[1704150467885,0.457776,43700.0,43695.0,0.17328686]
[1704150468094,0.57869711,43699.0,43695.0,0.17950294]
[1704150468326,0.53321711,43699.0,43695.0,0.17950294]
[1704150468529,0.58085711,43699.0,43695.0,0.17950294]
[1704150468962,0.008,43696.0,43695.0,0.17950294]
[1704150469163,0.008,43696.0,43695.0,0.08621609]
[1704150469608,0.008,43696.0,43695.0,0.08721609]
[1704150469972,0.008,43696.0,43695.0,0.08621609]
[1704150470186,0.53321711,43699.0,43695.0,0.08721609]
[1704150470388,0.006,43696.0,43695.0,0.18150294]
[1704150470629,0.006,43696.0,43695.0,0.08721609]
[1704150470974,0.011,43696.0,43695.0,0.08721609]
[1704150471861,0.005,43696.0,43695.0,0.08621609]
[1704150472055,0.005,43696.0,43695.0,0.08721609]
[1704150472682,0.005,43696.0,43695.0,0.08621609]
[1704150472888,0.011,43696.0,43695.0,0.08721609]
[1704150473862,0.011,43696.0,43695.0,0.00721608]
[1704150474269,0.24421711,43696.0,43695.0,0.00721608]
[1704150476261,0.61038311,43696.0,43695.0,0.00721608]
[1704150480417,0.70973804,43696.0,43695.0,0.00721608]
[1704150481273,0.7609103,43696.0,43695.0,0.00721608]
[1704150481477,0.7609103,43696.0,43689.0,0.05]
[1704150481478,1.18079409,43696.0,43689.0,0.05]
[1704150481722,0.366216,43690.0,43689.0,0.05]
[1704150481932,0.95407648,43690.0,43689.0,0.05]
[1704150482158,0.95407648,43690.0,43685.0,0.08000001]
[1704150482159,0.98139816,43690.0,43685.0,0.31400001]
[1704150482358,0.65409128,43689.0,43685.0,0.31400001]
[1704150482538,0.65409128,43689.0,43686.0,0.00709106]
[1704150482836,0.366233,43688.0,43686.0,0.00709106]
[1704150483011,0.59945011,43688.0,43686.0,0.00709106]
[1704150483216,0.52945011,43688.0,43686.0,0.00709106]
[1704150483422,0.52945011,43688.0,43686.0,0.10037791]
[1704150483621,0.52945011,43688.0,43686.0,0.00709106]
[1704150484376,0.53045011,43688.0,43686.0,0.01409106]
[1704150484596,0.53045011,43688.0,43686.0,0.10737791]
[1704150485190,0.53145011,43688.0,43687.0,0.09328685]
[1704150485643,0.002,43688.0,43687.0,0.38038392]
[1704150486037,0.001,43688.0,43687.0,0.38038392]
[1704150486264,0.002,43688.0,43687.0,0.38738392]
[1704150486477,0.002,43688.0,43687.0,0.28738392]
[1704150486682,0.002,43688.0,43687.0,0.18738392]
[1704150486888,0.002,43688.0,43687.0,0.28738392]
[1704150487089,0.001,43688.0,43687.0,0.18738392]
[1704150487334,0.001,43688.0,43687.0,0.19338392]
[1704150487510,0.002,43688.0,43687.0,0.19338392]
[1704150487708,0.002,43688.0,43687.0,0.11338391]
[1704150488095,0.002,43688.0,43687.0,0.29338392]
[1704150489702,0.002,43688.0,43687.0,0.39338392]
[1704150491906,0.002,43688.0,43687.0,0.29338392]
[1704150492344,0.002,43688.0,43687.0,0.19338392]
[1704150492558,0.002,43688.0,43687.0,0.29338392]
[1704150495184,0.002,43688.0,43687.0,0.39338392]
[1704150499916,0.002,43688.0,43687.0,1.25878203]
[1704150500326,0.002,43688.0,43687.0,2.39453879]
[1704150500770,0.001,43688.0,43687.0,2.38853879]
[1704150500993,0.002,43688.0,43687.0,2.29853879]
[1704150501202,0.002,43688.0,43687.0,0.75662492]
[1704150501203,0.001,43688.0,43687.0,0.75662492]
[1704150501411,0.002,43688.0,43687.0,0.77362492]
[1704150502239,0.001,43688.0,43687.0,0.76362492]
[1704150502450,0.002,43688.0,43687.0,0.77962492]
[1704150507313,0.002,43688.0,43687.0,0.41338392]
[1704150507567,0.002,43688.0,43687.0,0.77962492]
[1704150510490,0.002,43688.0,43687.0,0.41338392]
[1704150510667,0.002,43688.0,43687.0,0.77962492]
[1704150511883,0.002,43688.0,43687.0,0.68633807]
[1704150513599,0.002,43688.0,43687.0,0.77962492]
[1704150514077,0.002,43688.0,43687.0,0.41338392]
[1704150514279,0.002,43688.0,43687.0,0.77962492]
[1704150515109,0.002,43688.0,43687.0,0.68633807]
[1704150515730,0.002,43688.0,43687.0,0.32009707]
[1704150516063,0.002,43688.0,43687.0,0.68633807]
[1704150517095,0.002,43688.0,43687.0,0.58633807]
[1704150517327,0.002,43688.0,43687.0,0.22009707]
[1704150517584,0.0568459,43688.0,43687.0,0.04009706]
[1704150517784,0.38223374,43688.0,43687.0,0.04009706]
[1704150518357,0.38223374,43688.0,43687.0,0.22009707]
[1704150518561,0.38223374,43688.0,43687.0,0.31338392]
[1704150518791,0.38223374,43688.0,43687.0,0.41338392]
[1704150518986,0.002,43688.0,43687.0,0.41338392]
[1704150519395,0.13711477,43693.0,43687.0,0.41338392]
[1704150519396,0.01991761,43693.0,43687.0,0.49962491]
[1704150519607,0.01991761,43693.0,43692.0,0.08000001]
[1704150519753,0.13711477,43693.0,43690.0,0.08000001]
[1704150520138,0.72779572,43697.0,43690.0,0.08000001]
[1704150520139,0.29431927,43692.0,43691.0,0.18000001]
[1704150520323,0.79647511,43697.0,43695.0,0.08000001]
[1704150520580,0.79647511,43697.0,43696.0,0.09328685]
[1704150520778,0.86989896,43697.0,43695.0,0.08000001]
[1704150520892,0.27052385,43696.0,43695.0,0.08000001]
[1704150521346,0.27052385,43696.0,43693.0,0.08000001]
[1704150521581,0.27052385,43696.0,43695.0,0.08000001]
[1704150523274,0.27352385,43696.0,43695.0,0.08000001]
[1704150523481,0.29744894,43696.0,43695.0,0.18000001]
[1704150523677,0.27052385,43696.0,43695.0,0.18100001]
[1704150523912,0.16453772,43698.0,43696.0,0.18000001]
[1704150524092,0.04446,43698.0,43697.0,0.18000001]
[1704150524339,0.21721772,43699.0,43698.0,0.08000001]
[1704150524515,0.73506078,43699.0,43698.0,0.08000001]
[1704150524923,0.78378078,43699.0,43698.0,0.08000001]
[1704150525508,0.78378078,43699.0,43696.0,0.08000001]
[1704150525738,0.27052306,43698.0,43696.0,0.08000001]
[1704150526003,0.27052306,43697.0,43696.0,0.08000001]
[1704150526419,0.27052306,43697.0,43696.0,0.08581011]
[1704150527374,0.27152306,43697.0,43696.0,0.0058101]
[1704150527588,0.92651717,43697.0,43695.0,0.08000001]
[1704150527795,0.27052306,43696.0,43695.0,0.08000001]
[1704150528405,0.27052306,43696.0,43695.0,0.08581406]
[1704150528621,0.63668906,43696.0,43695.0,0.08000001]
[1704150528836,0.63668906,43696.0,43695.0,0.08581406]
[1704150529645,0.63668906,43696.0,43695.0,0.08100001]
[1704150534895,0.80122678,43696.0,43695.0,0.08100001]
[1704150536389,0.63668906,43696.0,43695.0,0.08100001]
[1704150537576,0.80122678,43696.0,43695.0,0.08100001]
[1704150538192,0.63668906,43696.0,43695.0,0.08100001]
[1704150539200,0.80122678,43696.0,43695.0,0.08100001]
[1704150540695,0.63668906,43696.0,43695.0,0.08100001]
[1704150541626,0.63668906,43696.0,43695.0,0.001]
[1704150541883,0.80122678,43696.0,43695.0,0.001]
[1704150542943,0.63668906,43696.0,43695.0,0.001]
[1704150543147,0.86990617,43696.0,43695.0,0.001]
[1704150543344,1.03444389,43696.0,43695.0,0.00672101]
[1704150543545,0.96444389,43696.0,43695.0,0.00672101]
[1704150543755,0.96444389,43696.0,43695.0,0.001]
[1704150545214,1.17865334,43696.0,43695.0,0.001]
[1704150545462,1.23757334,43696.0,43695.0,0.001]
[1704150545673,1.23757334,43696.0,43691.0,0.08000001]
[1704150545890,1.23757334,43696.0,43689.0,0.3336]
[1704150545891,0.366199,43692.0,43690.0,0.08000001]
[1704150546110,0.366208,43691.0,43690.0,0.08000001]
[1704150546319,0.366208,43691.0,43689.0,0.2336]
[1704150546549,0.366208,43691.0,43690.0,0.08000001]
[1704150546758,0.366208,43691.0,43690.0,0.08542394]
[1704150547170,0.39791023,43693.0,43691.0,0.08000001]
[1704150547383,0.23321711,43693.0,43691.0,0.08000001]
[1704150547592,0.23321711,43693.0,43692.0,0.00540924]
[1704150547804,0.59940811,43693.0,43692.0,0.00540924]
[1704150549481,0.23321711,43693.0,43692.0,0.00540924]
[1704150549690,0.23321711,43693.0,43692.0,0.007]
[1704150549891,0.59940811,43693.0,43692.0,0.01240924]
[1704150550917,0.76410123,43693.0,43692.0,0.01240924]
[1704150551545,0.59940811,43693.0,43692.0,0.01240924]
[1704150551774,1.00119311,43693.0,43692.0,0.01240924]
[1704150551999,1.00119311,43693.0,43692.0,0.007]
[1704150552000,0.98756211,43693.0,43692.0,0.007]
[1704150552423,1.35375311,43693.0,43692.0,0.003]
[1704150552853,1.35375311,43693.0,43686.0,0.08000001]
[1704150552854,1.53985805,43693.0,43686.0,0.08000001]
[1704150553093,0.366237,43688.0,43687.0,0.08000001]
[1704150553297,0.366237,43688.0,43687.0,0.0854209]
[1704150553516,0.366237,43688.0,43687.0,0.08000001]
[1704150553735,0.366237,43688.0,43687.0,0.0854209]
[1704150554390,0.371237,43688.0,43687.0,0.0854209]
[1704150555666,0.005,43688.0,43687.0,0.0854209]
[1704150555925,0.002,43688.0,43687.0,0.00542089]
[1704150556192,0.002,43688.0,43687.0,0.0854209]
[1704150556193,0.366239,43688.0,43687.0,0.0854209]
[1704150556455,0.366239,43688.0,43687.0,0.0864209]
[1704150556714,0.366239,43688.0,43687.0,0.0854209]
[1704150556967,0.50841172,43688.0,43687.0,0.0854209]
[1704150557253,0.50641172,43688.0,43687.0,0.0854209]
[1704150557508,0.50341172,43688.0,43687.0,0.0854209]
[1704150557762,0.366239,43688.0,43687.0,0.0854209]
[1704150558627,0.6368092,43688.0,43687.0,0.0864209]
[1704150558843,0.6368092,43688.0,43687.0,0.0854209]
[1704150559610,0.6378092,43688.0,43687.0,0.0854209]
[1704150559825,0.6388092,43688.0,43687.0,0.0854209]
[1704150560262,0.6378092,43688.0,43687.0,0.0854209]
[1704150560717,0.6398092,43688.0,43687.0,0.0854209]
[1704150561780,1.0642945,43688.0,43687.0,0.00542089]
[1704150561988,1.0872945,43688.0,43684.0,0.02915]
[1704150562201,1.0346915,43687.0,43684.0,0.02915]
[1704150562406,0.2705702,43686.0,43684.0,0.02915]
[1704150562610,0.50378731,43685.0,43684.0,0.02915]
[1704150564626,0.50378731,43685.0,43684.0,0.03215]
[1704150564829,0.38024914,43685.0,43684.0,0.21615001]
[1704150565643,0.10967894,43685.0,43684.0,0.21215001]
[1704150565849,0.10967894,43685.0,43684.0,0.21115001]
[1704150566269,0.10967894,43685.0,43684.0,0.21215001]
[1704150566405,0.38026253,43685.0,43684.0,0.21215001]
[1704150566610,0.36622,43690.0,43684.0,0.11215001]
[1704150566611,0.2705813,43686.0,43684.0,0.11215001]
[1704150566837,0.40766653,43685.0,43684.0,0.11215001]
[1704150567067,0.2705813,43685.0,43684.0,0.11215001]
[1704150567295,0.40766686,43685.0,43684.0,0.11215001]
[1704150567510,0.40766686,43685.0,43684.0,0.11115001]
[1704150567742,0.40766686,43685.0,43684.0,0.11015001]
[1704150567989,0.40766686,43685.0,43684.0,0.11415001]
[1704150569708,0.2705813,43685.0,43684.0,0.11315001]
[1704150569882,0.2705813,43685.0,43684.0,0.11615001]
[1704150570452,0.2705813,43685.0,43684.0,0.03615]
[1704150570453,0.50379841,43685.0,43684.0,0.03615]
[1704150570706,1.21565641,43685.0,43684.0,0.03615]
[1704150570892,1.3347146,43685.0,43684.0,0.03615]
[1704150571092,1.5489326,43685.0,43684.0,0.03615]
[1704150571242,1.5489326,43685.0,43684.0,0.02915]
[1704150571654,1.5489326,43685.0,43684.0,0.03015]
[1704150571854,1.5489326,43685.0,43684.0,0.02915]
[1704150572230,1.5499326,43685.0,43684.0,0.02915]
[1704150572437,1.33446093,43685.0,43684.0,0.02915]
[1704150572887,1.17205641,43685.0,43684.0,0.02915]
[1704150573086,1.17005641,43685.0,43684.0,0.02915]
[1704150573345,0.41057158,43685.0,43684.0,0.10915001]
[1704150573553,0.2735813,43685.0,43684.0,0.11512285]
[1704150573777,0.1125857,43685.0,43684.0,0.11512285]
[1704150573984,0.11258549,43685.0,43684.0,0.11512285]
[1704150574180,0.38316981,43685.0,43684.0,0.11512285]
[1704150574627,0.38316998,43685.0,43684.0,0.11512285]
[1704150575841,0.38317379,43685.0,43684.0,0.11512285]
[1704150576224,0.27358432,43685.0,43684.0,0.11512285]
[1704150576422,0.11259116,43685.0,43684.0,0.11512285]
[1704150576750,0.3831758,43685.0,43684.0,0.11512285]
[1704150577125,0.4105746,43685.0,43684.0,0.11512285]
[1704150577346,0.27358432,43685.0,43684.0,0.11512285]
[1704150577649,0.38318032,43685.0,43684.0,0.11512285]
[1704150577850,0.0851945,43685.0,43684.0,0.21512285]
[1704150578091,0.08519433,43685.0,43684.0,0.21512285]
[1704150578329,0.05779519,43685.0,43684.0,0.21512285]
[1704150578530,0.003,43685.0,43684.0,0.68138885]
[1704150579150,0.001,43685.0,43684.0,0.68138885]
[1704150579366,0.05479519,43690.0,43684.0,0.7746757]
[1704150579581,0.05479519,43690.0,43685.0,0.09328685]
[1704150579752,0.05479519,43690.0,43689.0,0.18000001]
[1704150580054,0.05479519,43691.0,43689.0,0.18000001]
[1704150580361,0.05479519,43691.0,43690.0,0.18000001]
[1704150580716,0.05479519,43691.0,43690.0,0.18689514]
[1704150581622,0.08219433,43692.0,43691.0,0.18000001]
[1704150582009,0.109596,43693.0,43691.0,0.18688534]
[1704150582237,0.08219287,43692.0,43691.0,0.18688534]
[1704150583547,0.08419287,43692.0,43691.0,0.18688534]
[1704150584023,0.08219287,43692.0,43691.0,0.18688534]
[1704150584235,0.08419287,43692.0,43691.0,0.18688534]
[1704150585037,0.08519287,43692.0,43691.0,0.18688534]
[1704150585280,0.08419287,43692.0,43691.0,0.18688534]
[1704150585533,0.08219287,43692.0,43691.0,0.18888534]
[1704150585786,0.109596,43693.0,43692.0,0.08000001]
[1704150586035,0.109596,43693.0,43691.0,0.10888533]
[1704150586036,0.109596,43694.0,43693.0,0.08000001]
[1704150586245,0.61334323,43694.0,43693.0,0.08000001]
[1704150586483,0.61334323,43694.0,43693.0,0.08821671]
[1704150586959,0.640737,43694.0,43693.0,0.08821671]
[1704150588037,0.50374672,43694.0,43693.0,0.08821671]
[1704150588199,0.641737,43694.0,43693.0,0.08821671]
[1704150588483,0.50474672,43694.0,43693.0,0.08821671]
[1704150588644,0.641737,43694.0,43693.0,0.08821671]
[1704150588857,0.640737,43694.0,43693.0,0.08821671]
[1704150589053,0.38012678,43694.0,43693.0,0.18821671]
[1704150589252,0.38012678,43694.0,43693.0,0.18921671]
[1704150589463,0.38212678,43694.0,43693.0,0.18921671]
[1704150589903,0.38012678,43694.0,43693.0,0.28921671]
[1704150590329,0.10959717,43695.0,43694.0,0.28000001]
[1704150590557,0.10959717,43696.0,43695.0,0.18000001]
[1704150591224,0.38011445,43696.0,43695.0,0.18000001]
[1704150591424,0.38011445,43696.0,43695.0,0.1881932]
[1704150591777,0.38211445,43696.0,43695.0,0.1881932]
[1704150592004,0.38211445,43696.0,43695.0,0.2881932]
[1704150592005,0.08418292,43696.0,43695.0,0.2881932]
[1704150592446,0.002,43696.0,43695.0,0.2881932]
[1704150592868,0.05678108,43696.0,43695.0,0.2831932]
[1704150593232,0.05978108,43696.0,43695.0,0.2831932]
[1704150594075,0.005,43696.0,43695.0,0.2831932]
[1704150597602,0.003,43696.0,43695.0,0.2831932]
[1704150597823,0.1,43697.0,43696.0,0.27500001]
[1704150598011,0.1,43697.0,43696.0,0.38316902]
[1704150598314,0.1,43697.0,43696.0,0.74933502]
[1704150598513,0.1,43697.0,43696.0,1.08255213]
[1704150598721,0.1,43697.0,43696.0,1.15195213]
[1704150598931,0.06240259,43708.0,43707.0,0.17500001]
[1704150599153,0.06240259,43708.0,43707.0,0.27500001]
[1704150599371,0.10959717,43710.0,43709.0,0.27500001]
[1704150599588,0.10959717,43711.0,43710.0,0.17500001]
[1704150599802,0.38004513,43711.0,43710.0,0.17500001]
[1704150600016,0.50300628,43714.0,43713.0,0.17500001]
[1704150600248,0.77343947,43714.0,43713.0,0.17500001]
[1704150600470,0.74583805,43714.0,43713.0,0.17500001]
[1704150601090,0.74583546,43714.0,43713.0,0.17500001]
[1704150601326,0.83744846,43714.0,43713.0,0.17500001]
[1704150601772,0.56701052,43714.0,43713.0,0.17500001]
[1704150602396,0.457629,43714.0,43713.0,0.17500001]
[1704150602600,0.457629,43714.0,43713.0,0.17600001]
[1704150602834,0.463629,43714.0,43713.0,0.17600001]
[1704150603035,0.372016,43714.0,43713.0,0.17600001]
[1704150603462,0.006,43714.0,43713.0,0.27600001]
[1704150603664,0.307991,43717.0,43716.0,0.17500001]
[1704150604301,0.399596,43717.0,43716.0,0.17500001]
[1704150604502,0.307991,43717.0,43716.0,0.17500001]
[1704150604715,0.307991,43717.0,43715.0,0.1]
[1704150604716,0.307991,43717.0,43715.0,0.07500001]
[1704150604926,0.366,43716.0,43715.0,0.17500001]
[1704150605324,0.457608,43716.0,43715.0,0.17500001]
[1704150605614,0.366,43716.0,43715.0,0.17500001]
[1704150605815,0.366,43716.0,43715.0,0.07500001]
[1704150605961,0.366,43716.0,43715.0,0.07600001]
[1704150607242,0.59921711,43716.0,43715.0,0.001]
[1704150607656,0.59921511,43716.0,43715.0,0.001]
[1704150607837,0.68104134,43716.0,43713.0,0.07500001]
[1704150608036,0.366015,43714.0,43713.0,0.07500001]
[1704150609708,0.373015,43714.0,43713.0,0.07600001]
[1704150610246,0.381015,43714.0,43713.0,0.17700001]
[1704150610687,0.373015,43714.0,43713.0,0.17600001]
[1704150610884,0.369015,43714.0,43713.0,0.17500001]
[1704150611091,0.366015,43714.0,43713.0,0.17500001]
[1704150611293,0.370015,43714.0,43713.0,0.17500001]
[1704150611720,0.366015,43714.0,43713.0,0.17500001]
[1704150611925,0.372015,43714.0,43713.0,0.17500001]
[1704150612494,0.368015,43714.0,43713.0,0.17500001]
[1704150612713,0.371015,43714.0,43713.0,0.17500001]
[1704150613115,0.371015,43714.0,43713.0,0.07500001]
[1704150614098,0.366015,43714.0,43713.0,0.07500001]
[1704150614304,0.366015,43714.0,43713.0,0.17500001]
[1704150614514,0.368015,43714.0,43713.0,0.17500001]
[1704150614727,0.366015,43714.0,43713.0,0.17500001]
[1704150614908,0.369015,43714.0,43713.0,0.17500001]
[1704150615106,0.371015,43714.0,43713.0,0.17500001]
[1704150615310,0.368015,43714.0,43713.0,0.17500001]
[1704150615747,0.371015,43714.0,43713.0,0.17500001]
[1704150622931,0.005,43714.0,43713.0,0.17500001]
[1704150623137,0.371015,43714.0,43713.0,0.17500001]
[1704150623967,0.42556136,43714.0,43713.0,0.17500001]
[1704150624644,0.45284123,43714.0,43713.0,0.17500001]
[1704150625066,0.44984123,43714.0,43713.0,0.17500001]
[1704150625291,0.87165735,43714.0,43707.0,0.07500001]
[1704150625507,0.05462554,43709.0,43708.0,0.07500001]
[1704150625736,0.08193254,43710.0,43708.0,0.07500001]
[1704150625950,0.08193254,43709.0,43708.0,0.07500001]
[1704150626389,0.05462899,43709.0,43708.0,0.07500001]
[1704150626604,0.44798954,43709.0,43708.0,0.07500001]
[1704150627449,0.366057,43709.0,43708.0,0.17500001]
[1704150627666,0.366057,43709.0,43708.0,0.18500001]